bitfinex/quotes_SOLUSD_20230102
["timestamp","ask_amount","ask_price","bid_price","bid_amount"]
[1672659532507,91.8938,10.986,10.975,53.6235]
[1672659533262,91.8938,10.986,10.976,23.6235]
[1672659534079,91.8938,10.986,10.977,30.0]
[1672659534290,47.38,11.0,10.98,9.41]
[1672659534523,30.0,10.996,10.977,142.5088]
[1672659534832,20.0,10.995,10.977,142.5088]
[1672659535049,9.48,10.99,10.977,142.5088]
[1672659535253,44.2885,10.989,10.978,22.884]
[1672659535660,112.6385,10.989,10.98,30.0]
[1672659535870,44.2885,10.989,10.98,30.0]
[1672659536097,112.6385,10.989,10.979,61.37]
[1672659536316,44.2885,10.989,10.979,61.37]
[1672659537133,68.33,10.992,10.98,30.0]
[1672659537346,68.32,10.995,10.981,102.01]
[1672659537564,68.3,10.998,10.981,188.02510786]
[1672659537777,226.7382,10.998,10.982,47.3795]
[1672659537990,226.7382,10.998,10.984,30.0]
[1672659537991,30.0,10.997,10.984,30.0]
[1672659538187,52.536,10.997,10.985,47.3795]
[1672659538398,68.31,10.996,10.985,47.3795]
[1672659538832,90.846,10.996,10.986,22.6149]
[1672659539784,30.0,10.995,10.986,22.6149]
[1672659539971,90.846,10.996,10.986,22.6149]
[1672659541567,30.0,10.995,10.986,22.6149]
[1672659541758,68.32,10.994,10.986,22.6149]
[1672659542304,30.0,10.993,10.986,22.6149]
[1672659542702,68.33,10.992,10.986,22.6149]
[1672659543041,20.0,10.991,10.979,30.0]
[1672659543253,23.5691,10.991,10.982,15.80730786]
[1672659543451,23.5691,10.991,10.983,98.39]
[1672659543664,108.0105,10.999,10.983,98.39]
[1672659543989,30.0,10.997,10.983,98.39]
[1672659544186,92.1998,10.996,10.984,48.4135]
[1672659544395,92.1998,10.996,10.986,30.0]
[1672659545059,23.8898,10.996,10.986,30.0]
[1672659545356,23.8898,10.996,10.986,54.1948]
[1672659545880,68.32,10.995,10.986,24.1948]
[1672659547561,23.8898,10.996,10.987,30.0]
[1672659548303,23.8898,10.996,10.987,53.6234]
[1672659549347,23.8898,10.996,10.987,23.6234]
[1672659549553,23.8898,10.996,10.987,53.6234]
[1672659550401,23.8898,10.996,10.988,30.0]
[1672659551435,23.8898,10.996,10.987,23.6234]
[1672659551660,68.32,10.995,10.987,23.6234]
[1672659551859,30.0,10.994,10.987,23.6234]
[1672659552917,68.32,10.995,10.987,23.6234]
[1672659553751,30.0,10.994,10.987,23.6234]
[1672659553972,30.0,10.994,10.98,39.37]
[1672659553973,30.0,10.992,10.978,65.77]
[1672659554178,9.43,10.99,10.978,23.6351]
[1672659554391,30.0,10.988,10.979,30.0]
[1672659554583,92.4552,10.989,10.979,30.0]
[1672659556792,24.1052,10.989,10.979,30.0]
[1672659557430,24.1052,10.989,10.979,45.80730786]
[1672659558484,24.1052,10.989,10.981,30.0]
[1672659560511,24.1052,10.989,10.979,30.0]
[1672659561774,24.1797,10.994,10.979,30.0]
[1672659561775,68.33,10.992,10.981,30.0]
[1672659561970,68.32,10.995,10.982,69.0184]
[1672659562178,68.32,10.995,10.983,67.22]
[1672659562596,68.32,10.995,10.985,30.0]
[1672659563445,68.32,10.995,10.985,54.4617]
[1672659564501,68.32,10.995,10.985,24.4617]
[1672659565430,37.69857455,10.994,10.976,30.0]
[1672659565641,68.33,10.993,10.978,24.4617]
[1672659565851,50.0,10.992,10.978,24.4617]
[1672659566071,30.0,10.99,10.98,30.0]
[1672659566283,20.0,10.989,10.979,68.42]
[1672659566497,43.6907,10.989,10.979,68.42]
[1672659566687,43.6907,10.989,10.98,30.0]
[1672659573441,43.6907,10.989,10.979,30.0]
[1672659573657,43.6907,10.989,10.98,17.0]
[1672659574076,43.6907,10.989,10.979,30.0]
[1672659574809,43.6907,10.989,10.978,122.8817]
[1672659575006,43.6907,10.989,10.979,30.0]
[1672659579326,43.6907,10.989,10.98,77.84]
[1672659579327,23.6907,10.989,10.98,77.84]
[1672659579522,23.6907,10.989,10.982,30.0]
[1672659579734,23.6907,10.989,10.983,20.0]
[1672659579945,68.3,10.997,10.983,20.0]
[1672659580150,24.7762,10.996,10.983,20.0]
[1672659580376,68.32,10.995,10.983,20.0]
[1672659580585,68.32,10.995,10.985,30.0]
[1672659581309,68.32,10.995,10.985,52.8366]
[1672659582265,30.0,10.994,10.985,22.8366]
[1672659583139,98.32,10.995,10.985,22.8366]
[1672659583340,98.32,10.995,10.985,52.8366]
[1672659583540,98.32,10.995,10.985,22.8366]
[1672659583955,68.32,10.995,10.985,22.8366]
[1672659584377,68.32,10.995,10.985,52.8366]
[1672659584587,24.7762,10.996,10.986,68.37]
[1672659584806,92.1206,10.997,10.987,30.0]
[1672659585018,68.3,10.997,10.987,54.8442]
[1672659585233,68.28,11.0,10.987,54.8442]
[1672659585443,30.0,10.998,10.988,24.8442]
[1672659585638,68.3,10.998,10.988,24.8442]
[1672659585842,135.4074,10.999,10.988,93.2042]
[1672659586067,135.4074,10.999,10.989,30.0]
[1672659586287,67.1174,10.999,10.989,30.0]
[1672659586692,30.0,10.998,10.988,93.2042]
[1672659587006,98.3,10.998,10.988,93.2042]
[1672659587219,30.0,10.998,10.988,93.2042]
[1672659587423,23.5001,10.998,10.989,30.0]
[1672659591642,68.27,11.002,10.991,30.0]
[1672659591830,68.26,11.004,10.993,30.0]
[1672659592043,30.0,11.003,10.994,42.7928]
[1672659592264,68.27,11.002,10.994,42.7928]
[1672659592889,30.0,11.001,10.994,42.7928]
[1672659593114,30.0,11.001,10.988,68.36]
[1672659593309,68.28,11.0,10.987,205.3356]
[1672659593519,50.0,10.999,10.989,30.0]
[1672659593728,50.0,10.999,10.988,30.0]
[1672659593948,24.4491,10.998,10.989,68.35]
[1672659594161,24.4491,10.998,10.99,30.0]
[1672659596142,68.28,11.0,10.99,30.0]
[1672659596469,30.0,11.002,10.992,30.0]
[1672659596679,68.27,11.003,10.993,20.0]
[1672659596883,68.27,11.003,10.993,43.628]
[1672659597627,68.27,11.003,10.994,30.0]
[1672659597841,30.0,11.003,10.994,30.0]
[1672659598041,68.27,11.002,10.994,54.108]
[1672659598260,68.26,11.004,10.995,24.108]
[1672659598688,30.0,11.003,10.995,24.108]
[1672659598875,68.27,11.002,10.995,24.108]
[1672659599626,92.0433,11.005,10.995,24.108]
[1672659599841,23.7933,11.005,10.996,47.0]
[1672659600266,23.7933,11.005,10.996,30.0]
[1672659600460,68.26,11.004,10.996,53.9744]
[1672659600669,68.25,11.005,10.996,53.9744]
[1672659601105,68.25,11.005,10.997,17.0]
[1672659602880,68.25,11.005,10.996,53.9744]
[1672659603505,68.25,11.005,10.997,17.0]
[1672659604660,114.3829,11.006,10.997,17.0]
[1672659605080,91.498,11.006,10.998,30.0]
[1672659605303,23.248,11.006,10.998,30.0]
[1672659607627,91.498,11.006,10.999,17.0]
[1672659607839,23.248,11.006,10.999,17.0]
[1672659608451,23.248,11.006,11.0,9.41]
[1672659608883,23.898,11.007,11.0,9.41]
[1672659609931,68.23,11.008,11.001,17.0]
[1672659610145,68.21,11.012,11.002,30.0]
[1672659610347,68.19,11.015,11.003,17.0]
[1672659610566,90.8615,11.015,11.004,20.0]
[1672659611082,30.0,11.014,11.005,22.5111]
[1672659611297,68.2,11.013,11.005,22.5111]
[1672659612876,68.2,11.013,11.005,52.5111]
[1672659613095,30.0,11.013,11.005,22.5111]
[1672659613295,68.21,11.012,11.005,22.5111]
[1672659613829,30.0,11.013,11.005,22.5111]
[1672659614041,68.21,11.012,11.005,22.5111]
[1672659614245,68.21,11.012,11.006,30.0]
[1672659614568,68.2,11.014,11.006,30.0]
[1672659614780,90.8615,11.015,11.006,53.2053]
[1672659615100,90.8615,11.015,11.006,23.2053]
[1672659615286,30.0,11.014,11.006,23.2053]
[1672659615707,90.8615,11.015,11.006,23.2053]
[1672659616368,30.0,11.014,11.006,23.2053]
[1672659616574,68.2,11.013,11.006,23.2053]
[1672659617179,68.2,11.014,11.006,23.2053]
[1672659618030,30.0,11.013,11.006,23.2053]
[1672659618241,68.2,11.014,11.006,23.2053]
[1672659619277,22.6715,11.015,11.006,53.2053]
[1672659619697,90.8615,11.015,11.006,53.2053]
[1672659619908,90.8615,11.015,11.006,23.2053]
[1672659620851,90.8615,11.015,11.006,53.2053]
[1672659621692,90.8615,11.015,11.007,30.0]
[1672659622855,22.6715,11.015,11.007,30.0]
[1672659623067,90.8615,11.015,11.007,30.0]
[1672659623478,22.6715,11.015,11.007,30.0]
[1672659623790,22.6715,11.015,11.006,53.2053]
[1672659624004,90.8615,11.015,11.006,53.2053]
[1672659625261,90.8615,11.015,11.007,30.0]
[1672659626532,90.8615,11.015,11.006,23.2053]
[1672659626945,90.8615,11.015,11.006,53.2053]
[1672659627365,90.8615,11.015,11.006,23.2053]
[1672659627575,90.8615,11.015,11.007,30.0]
[1672659628941,90.8615,11.015,11.006,53.2053]
[1672659631882,90.8615,11.015,11.006,23.2053]
[1672659632527,90.8615,11.015,11.007,17.0]
[1672659632741,22.6715,11.015,11.008,30.0]
[1672659633157,22.6715,11.015,11.009,17.0]
[1672659633361,22.6715,11.015,11.008,30.0]
[1672659633575,90.8615,11.015,11.008,30.0]
[1672659633896,22.6715,11.015,11.008,30.0]
[1672659635372,22.6715,11.015,11.009,17.0]
[1672659635584,22.6715,11.015,11.008,30.0]
[1672659636426,22.6715,11.015,11.007,24.2941]
[1672659636636,90.8615,11.015,11.007,24.2941]
[1672659637680,30.0,11.014,11.007,24.2941]
[1672659637893,68.2,11.013,11.007,24.2941]
[1672659639041,68.2,11.014,11.007,24.2941]
[1672659641873,30.0,11.013,11.007,24.2941]
[1672659642821,98.2,11.014,11.007,24.2941]
[1672659644098,30.0,11.013,11.007,24.2941]
[1672659646409,98.2,11.014,11.007,24.2941]
[1672659646920,30.0,11.013,11.007,24.2941]
[1672659648493,88.21,11.012,11.007,24.2941]
[1672659648701,244.39021211,11.012,10.995,37.9]
[1672659648930,76.98,11.01,10.999,114.4578]
[1672659649123,88.23,11.009,10.999,114.4578]
[1672659649338,30.0,11.008,10.999,114.4578]
[1672659649549,68.24,11.007,10.999,114.4578]
[1672659649976,30.0,11.006,10.999,114.4578]
[1672659650415,68.24,11.007,10.999,114.4578]
[1672659650833,122.7963,11.008,10.999,114.4578]
[1672659651346,122.7963,11.008,10.999,138.1713]
[1672659652705,92.7963,11.008,10.999,138.1713]
[1672659653546,92.7963,11.008,11.0,30.0]
[1672659654091,92.7963,11.008,10.999,138.1713]
[1672659654092,24.5663,11.008,10.999,138.1713]
[1672659656718,24.5663,11.008,11.0,30.0]
[1672659657857,24.5663,11.008,11.0,39.377]
[1672659659450,24.5663,11.008,11.001,17.0]
[1672659659663,24.5663,11.008,11.003,30.0]
[1672659659873,24.932,11.009,11.003,30.0]
[1672659660191,68.19,11.015,11.004,20.0]
[1672659660379,30.0,11.014,11.004,20.0]
[1672659660584,9.37,11.01,11.002,20.0]
[1672659660798,9.37,11.01,11.002,69.0656]
[1672659661028,9.37,11.01,11.002,89.6656]
[1672659661637,9.37,11.01,11.003,30.0]
[1672659661857,9.37,11.01,11.004,20.0]
[1672659662580,30.0,11.014,11.004,20.0]
[1672659662792,68.19,11.015,11.004,44.7968]
[1672659663005,68.19,11.015,11.005,30.0]
[1672659663217,68.19,11.015,11.005,54.7968]
[1672659663429,68.19,11.016,11.005,54.7968]
[1672659663627,30.0,11.015,11.006,22.8981]
[1672659663841,68.19,11.016,11.006,22.8981]
[1672659664052,100.01065675,11.017,11.006,22.8981]
[1672659664053,168.19065675,11.017,11.006,22.8981]
[1672659664271,168.19065675,11.017,11.007,22.8981]
[1672659664490,168.19065675,11.017,11.007,52.8981]
[1672659665445,168.19065675,11.017,11.007,22.8981]
[1672659668486,138.19065675,11.017,11.008,30.0]
[1672659668697,138.19065675,11.017,11.007,22.8981]
[1672659669132,30.0,11.016,11.007,22.8981]
[1672659669345,68.19,11.015,11.007,22.8981]
[1672659669562,30.0,11.014,11.007,22.8981]
[1672659669961,68.19,11.015,11.007,22.8981]
[1672659670695,68.19,11.016,11.007,22.8981]
[1672659670918,68.19,11.016,11.007,22.83358397]
[1672659671337,68.18,11.017,11.008,30.0]
[1672659672190,68.18,11.017,11.007,144.2163]
[1672659674283,68.18,11.017,11.007,114.2163]
[1672659674594,75.89013991,11.017,11.007,114.2163]
[1672659675108,30.0,11.016,11.007,114.2163]
[1672659675321,68.19,11.015,11.007,114.2163]
[1672659675525,30.0,11.014,11.007,114.2163]
[1672659675748,68.2,11.013,11.007,114.2163]
[1672659675961,30.0,11.012,11.007,114.2163]
[1672659676161,68.2,11.013,11.007,114.2163]
[1672659676585,30.0,11.014,11.007,114.2163]
[1672659676909,68.19,11.015,11.007,114.2163]
[1672659680491,7.71013991,11.016,11.007,114.2163]
[1672659681108,7.71013991,11.016,11.007,138.7559]
[1672659682054,68.18,11.017,11.007,138.7559]
[1672659683013,75.89013991,11.017,11.007,138.7559]
[1672659683539,30.0,11.016,11.007,138.7559]
[1672659684067,68.18,11.017,11.007,138.7559]
[1672659684468,30.0,11.016,11.007,138.7559]
[1672659685737,30.0,11.016,11.007,147.7439]
[1672659686581,120.8261,11.018,11.007,147.7439]
[1672659686785,52.6561,11.018,11.008,22.6917]
[1672659686997,22.6561,11.018,11.008,52.6917]
[1672659687425,22.6561,11.018,11.009,17.0]
[1672659687626,22.6561,11.018,11.01,30.0]
[1672659687839,22.6561,11.018,11.009,39.6917]
[1672659688360,30.0,11.017,11.009,22.6917]
[1672659690038,68.18,11.017,11.009,22.6917]
[1672659690469,128.4359608,11.018,11.009,22.6917]
[1672659690692,120.8261,11.018,11.009,22.6917]
[1672659691743,7.6098608,11.017,11.009,22.6917]
[1672659692063,120.8261,11.018,11.009,22.6917]
[1672659692256,30.0,11.017,11.009,22.6917]
[1672659692457,98.18,11.017,11.009,22.6917]
[1672659694365,68.19,11.016,11.009,22.6917]
[1672659694583,30.0,11.015,11.009,22.6917]
[1672659694767,170.95816684,11.015,11.009,22.6917]
[1672659694977,133.35147336,11.014,11.009,22.6917]
[1672659695194,209.15816684,11.014,11.009,22.6917]
[1672659695415,30.0,11.013,11.009,22.6917]
[1672659695611,163.35147336,11.013,11.009,22.6917]
[1672659695824,133.35147336,11.012,11.008,138.6535]
[1672659696029,30.0,11.013,11.005,24.6604]
[1672659696359,30.0,11.013,11.004,20.0]
[1672659696555,30.0,11.015,11.003,29.095]
[1672659696766,30.0,11.015,11.004,30.0]
[1672659696989,30.0,11.015,11.005,24.6128]
[1672659697309,37.60669348,11.015,11.005,24.6128]
[1672659697521,90.02884477,11.014,11.005,24.6128]
[1672659697833,30.0,11.013,11.005,24.6128]
[1672659699300,98.2,11.013,11.005,24.6128]
[1672659699510,27.60669348,11.012,11.001,22.5738]
[1672659699729,9.33,11.01,11.001,45.0789]
[1672659699922,20.0,11.009,11.001,45.0789]
[1672659700552,30.0,11.008,11.001,22.5051]
[1672659701602,50.0,11.009,11.001,22.5051]
[1672659701842,20.0,11.009,11.001,22.5051]
[1672659702360,30.0,11.008,11.001,22.5051]
[1672659702971,20.0,11.009,11.001,22.5051]
[1672659703396,30.0,11.008,11.001,22.5051]
[1672659704671,98.23,11.008,11.001,22.5051]
[1672659707183,30.0,11.008,11.001,22.5051]
[1672659708886,50.0,11.009,11.001,22.5051]
[1672659710671,30.0,11.008,11.001,22.5051]
[1672659711809,98.23,11.008,11.001,22.5051]
[1672659712019,30.0,11.008,11.001,22.5051]
[1672659713514,178.25884477,11.009,11.001,22.5051]
[1672659713825,68.2,11.013,11.003,30.0]
[1672659714045,30.0,11.015,11.005,30.0]
[1672659714267,30.0,11.015,11.005,53.8414]
[1672659714457,68.2,11.014,11.005,53.8414]
[1672659715206,68.2,11.014,11.005,23.8414]
[1672659715393,158.22884477,11.014,11.005,23.8414]
[1672659715612,30.0,11.013,11.001,22.7024]
[1672659715941,30.0,11.009,11.001,22.7024]
[1672659716148,30.0,11.009,11.0,30.0]
[1672659716366,30.0,11.009,10.999,168.2752]
[1672659716367,53.7833,11.009,10.999,159.1262]
[1672659717100,53.7833,11.009,11.0,39.148]
[1672659717288,53.7833,11.009,11.0,30.0]
[1672659717499,53.7833,11.009,10.999,159.1262]
[1672659717729,53.7833,11.009,11.0,39.299]
[1672659717730,23.7833,11.009,11.0,39.299]
[1672659718145,90.02884477,11.012,11.0,39.299]
[1672659718336,68.2,11.014,11.002,30.0]
[1672659718545,162.53953825,11.017,11.003,53.0228]
[1672659718772,30.0,11.016,11.004,30.0]
[1672659718991,30.0,11.014,11.004,30.0]
[1672659719184,30.0,11.014,11.004,53.5728]
[1672659719599,30.0,11.014,11.004,23.5728]
[1672659720021,30.0,11.014,11.004,53.5728]
[1672659720981,154.94284477,11.015,11.004,53.5728]
[1672659721200,154.94284477,11.015,11.005,24.0672]
[1672659721806,30.0,11.014,11.005,24.0672]
[1672659724543,154.94284477,11.015,11.005,24.0672]
[1672659724754,30.0,11.014,11.005,24.0672]
[1672659728557,154.94284477,11.015,11.005,24.0672]
[1672659729288,154.94284477,11.015,11.005,54.0672]
[1672659729689,86.75284477,11.015,11.005,24.0672]
[1672659729905,30.0,11.016,11.005,24.0672]
[1672659730111,68.19,11.015,11.006,22.8831]
[1672659730441,30.0,11.014,11.006,22.8831]
[1672659731054,68.2,11.013,11.006,22.8831]
[1672659731265,30.0,11.014,11.006,22.8831]
[1672659733934,68.19,11.015,11.006,22.8831]
[1672659734979,68.19,11.015,11.006,52.8831]
[1672659735395,68.19,11.015,11.006,22.8831]
[1672659737385,68.19,11.015,11.007,30.0]
[1672659738327,68.19,11.015,11.006,52.8831]
[1672659739393,68.19,11.015,11.006,22.8831]
[1672659739797,68.19,11.015,11.006,52.8831]
[1672659740010,68.19,11.015,11.006,22.8831]
[1672659740217,30.0,11.016,11.006,22.8831]
[1672659740430,68.19,11.015,11.006,22.8831]
[1672659742120,68.19,11.015,11.007,17.0]
[1672659742320,30.0,11.016,11.007,17.0]
[1672659742529,30.0,11.016,11.007,24.0523]
[1672659742530,68.19,11.015,11.007,24.0523]
[1672659743704,30.0,11.016,11.007,24.0523]
[1672659743898,68.19,11.015,11.008,24.0523]
[1672659744656,30.0,11.016,11.008,24.0523]
[1672659744862,68.19,11.015,11.008,24.0523]
[1672659745915,30.0,11.014,11.008,24.0523]
[1672659746121,68.19,11.015,11.008,24.0523]
[1672659746548,86.75284477,11.014,11.008,24.0523]
[1672659746757,30.0,11.012,11.008,24.0523]
[1672659746955,68.2,11.013,11.007,132.6164]
[1672659747892,30.0,11.014,11.007,132.6164]
[1672659748104,68.2,11.013,11.007,132.6164]
[1672659749379,30.0,11.012,11.007,132.6164]
[1672659749786,30.0,11.014,11.007,132.6164]
[1672659750002,30.0,11.012,11.007,132.6164]
[1672659750733,20.0,11.011,11.007,109.0278]
[1672659750933,68.22,11.01,11.007,109.0278]
[1672659751148,20.0,11.009,10.998,46.9957]
[1672659751362,44.4506,11.009,10.999,39.157]
[1672659751887,44.4506,11.009,11.0,17.0]
[1672659752533,44.4506,11.009,11.001,30.0]
[1672659754514,44.4506,11.009,11.0,69.9339]
[1672659756129,44.4506,11.009,11.0,39.9339]
[1672659758428,44.4506,11.009,11.0,22.9339]
[1672659759804,43.9506,11.009,11.0,52.9339]
[1672659760945,30.0,11.008,11.0,22.9339]
[1672659761486,68.24,11.007,11.0,22.9339]
[1672659761904,68.23,11.008,11.0,22.9339]
[1672659766413,30.0,11.007,11.0,22.9339]
[1672659768216,154.05551144,11.008,11.0,22.9339]
[1672659771158,30.0,11.007,11.0,22.9339]
[1672659771472,68.25,11.006,11.0,22.9339]
[1672659776826,68.24,11.007,11.0,22.9339]
[1672659778084,30.0,11.006,11.0,22.9339]
[1672659780094,68.24,11.007,11.0,22.9339]
[1672659780288,154.05551144,11.008,11.0,22.9339]
[1672659780503,85.82551144,11.008,11.0,22.9339]
[1672659782706,85.82551144,11.008,11.0,52.9339]
[1672659784279,85.82551144,11.008,11.0,22.9339]
[1672659788292,68.24,11.007,11.0,22.9339]
[1672659788690,68.24,11.007,11.0,52.9339]
[1672659789133,154.05551144,11.008,11.0,52.9339]
[1672659789340,154.05551144,11.008,11.0,22.9339]
[1672659793120,154.05551144,11.008,11.0,52.9339]
[1672659793330,112.1806,11.009,11.0,52.9339]
[1672659793539,112.1806,11.009,11.0,22.9339]
[1672659806378,112.1806,11.009,11.0,52.9339]
[1672659806702,112.1806,11.009,11.0,68.74120786]
[1672659807016,43.9506,11.009,11.001,47.0]
[1672659807228,43.9506,11.009,11.002,30.0]
[1672659808799,43.9506,11.009,11.001,22.6721]
[1672659809331,43.9506,11.009,11.001,52.6721]
[1672659813006,43.9506,11.009,11.002,30.0]
[1672659818994,43.9506,11.009,11.001,22.6721]
[1672659819324,43.9506,11.009,11.002,30.0]
[1672659823727,113.1955,11.011,11.003,15.80730786]
[1672659823931,113.1955,11.011,11.004,67.0]
[1672659824132,68.18,11.017,11.004,67.0]
[1672659824348,68.18,11.017,11.005,76.2298]
[1672659825300,68.18,11.017,11.006,23.5915]
[1672659825520,68.18,11.017,11.007,30.0]
[1672659825736,68.18,11.017,11.007,53.5915]
[1672659829199,30.0,11.016,11.007,23.5915]
[1672659829412,68.19,11.015,11.007,23.5915]
[1672659829625,30.0,11.013,11.007,23.5915]
[1672659829829,88.21,11.012,11.0,40.58]
[1672659830038,135.1631,11.012,11.001,30.0]
[1672659830679,135.1631,11.012,11.002,17.0]
[1672659830880,46.9531,11.012,11.003,30.0]
[1672659831089,46.9531,11.012,11.004,17.0]
[1672659832054,68.19,11.016,11.004,17.0]
[1672659832276,30.0,11.017,11.004,17.0]
[1672659832574,30.0,11.017,11.006,30.0]
[1672659832579,68.19,11.016,11.006,30.0]
[1672659832774,68.19,11.016,11.007,23.1081]
[1672659833632,68.18,11.017,11.007,23.1081]
[1672659833840,30.0,11.016,11.008,23.1081]
[1672659834032,68.19,11.015,11.008,23.1081]
[1672659834567,68.19,11.015,11.008,53.1081]
[1672659834789,30.0,11.016,11.008,23.1081]
[1672659834975,68.19,11.015,11.008,23.1081]
[1672659835845,68.19,11.016,11.008,23.1081]
[1672659836893,68.18,11.017,11.008,23.1081]
[1672659837611,68.18,11.017,11.008,53.1081]
[1672659838457,68.18,11.017,11.008,23.1081]
[1672659838777,30.0,11.016,11.008,23.1081]
[1672659838976,68.19,11.015,11.008,23.1081]
[1672659841404,68.19,11.016,11.008,23.1081]
[1672659844440,68.18,11.017,11.008,23.1081]
[1672659844656,68.18,11.017,11.009,30.0]
[1672659845827,68.18,11.017,11.008,53.1081]
[1672659848566,68.18,11.017,11.009,30.0]
[1672659849083,67.68,11.017,11.008,23.1081]
[1672659849289,75.30644612,11.017,11.008,23.1081]
[1672659849496,30.0,11.016,11.008,23.1081]
[1672659849724,68.19,11.015,11.008,23.1081]
[1672659851393,68.19,11.016,11.008,23.1081]
[1672659853607,68.18,11.017,11.008,23.1081]
[1672659855917,75.41679226,11.017,11.008,23.1081]
[1672659856241,30.0,11.016,11.008,23.1081]
[1672659856453,68.19,11.015,11.008,23.1081]
[1672659857899,68.19,11.016,11.008,23.1081]
[1672659859604,67.69,11.016,11.008,23.1081]
[1672659859785,30.0,11.015,11.008,23.1081]
[1672659860001,88.2,11.014,10.999,10.13]
[1672659860211,30.0,11.013,11.0,132.0263]
[1672659860419,30.0,11.011,11.001,40.13]
[1672659860747,29.41,11.01,11.001,40.13]
[1672659860958,29.41,11.01,11.001,10.13]
[1672659862107,29.41,11.01,11.001,40.13]
[1672659862522,29.41,11.01,11.001,30.0]
[1672659864829,29.41,11.01,11.0,141.7643]
[1672659865040,54.2726,11.01,11.001,30.0]
[1672659866092,54.2726,11.01,11.0,141.7643]
[1672659866849,54.2726,11.01,11.001,30.0]
[1672659868319,54.2726,11.01,11.0,141.7643]
[1672659869374,54.2726,11.01,11.001,30.0]
[1672659873151,44.8626,11.01,11.001,30.0]
[1672659875032,44.8626,11.01,11.002,17.0]
[1672659876190,68.2,11.014,11.004,30.0]
[1672659877043,30.0,11.016,11.004,52.7519]
[1672659877244,68.19,11.015,11.006,30.0]
[1672659877763,30.0,11.014,11.005,164.0702]
[1672659877976,68.2,11.013,11.005,164.0702]
[1672659878197,30.0,11.012,11.005,164.0702]
[1672659878624,68.2,11.013,11.005,164.0702]
[1672659879234,30.0,11.014,11.005,164.0702]
[1672659879447,68.2,11.013,11.005,164.0702]
[1672659879873,68.19,11.015,11.005,164.0702]
[1672659880077,30.0,11.014,11.006,23.531]
[1672659880728,68.19,11.015,11.006,23.531]
[1672659881129,30.0,11.014,11.006,23.531]
[1672659881989,68.2,11.013,11.006,23.531]
[1672659882514,68.19,11.015,11.006,23.531]
[1672659884178,30.0,11.014,11.006,23.531]
[1672659884390,68.2,11.013,11.006,23.531]
[1672659884604,30.0,11.012,11.006,23.531]
[1672659885668,68.2,11.013,11.006,23.531]
[1672659889119,68.19,11.015,11.006,23.531]
[1672659889548,30.0,11.014,11.006,23.531]
[1672659889758,68.2,11.013,11.006,23.531]